Cogmind - Beta 16 @@@ ROGUE MODE // 2025.10.23 @ 19:08:44 Player: JohnnyDongs Result: Destroyed by 7F-TBM(R) with Subdweller Machine Gun Performance ------------- Evolutions (0) 0 Regions Visited (2) 400 Robots Destroyed (29) 145 Value Destroyed (671) 671 Prototype IDs (2) 40 Alien Tech Used (0) 0 Bonus (0) 0 TOTAL SCORE: 1256 Bonus ------- None Cogmind --------- Core Integrity 0/250 Matter 300/300 Energy 100/100 System Corruption 1% Temperature Cool (0) Movement Core (550) Ox10 Location -10/Subcaves Parts ------- > --- POWER (1) -------- (None) > --- PROPULSION (2) --- (None) > --- UTILITY (2) ------ Improved Heat Sink Large Storage Unit > --- WEAPON (2) ------- Beam Cannon Subdweller Beam Cannon > --- INVENTORY (15) --- Structural Scanner Improved Terrain Scanner Hacking Suite Grenade Launcher Dirty Datajack (20) Mining Claw Scrap Shield Fragment (42) Peak State ------------ > --- POWER ------------ Ion Engine > --- PROPULSION ------- (None) > --- UTILITY ---------- Improved Heat Sink Large Storage Unit > --- WEAPON ----------- Subdweller Beam Cannon Dirty Datajack > --- INVENTORY -------- Structural Scanner Improved Terrain Scanner Hacking Suite Beam Cannon Grenade Launcher Mining Claw [Rating: 14] Favorites ----------- Power Ion Engine Engine Ion Engine Propulsion Light Treads Treads Light Treads Leg Aluminum Leg Flight Unit Flight Unit Utility Hacking Suite Device Improved Heat Sink Storage Large Storage Unit Hackware Hacking Suite Weapon Mining Claw Energy Gun Medium Laser Energy Cannon Beam Cannon Ballistic Gun Assault Rifle Ballistic Cannon Light Cannon Launcher Grenade Launcher Slashing Weapon Mining Claw Special Melee Weapon Dirty Datajack Build | -11 -10 -10 ------- Run | Yrd Mat Sub Slots Evolved . | . . . Power . | . . . Propulsion . | . . . Utility . | . . . Weapon . | . . . Parts Attached 26 | 7 16 3 Power 3 | 1 2 . Engine 3 | 1 2 . Core . | . . . Reactor . | . . . Propulsion 8 | 2 6 . Treads 4 | 2 2 . Leg 2 | . 2 . Wheel . | . . . Hover . | . . . Flight 2 | . 2 . Utility 6 | 2 3 1 Device 3 | 2 . 1 Storage 1 | . 1 . Processor . | . . . Hackware 2 | . 2 . Protection . | . . . Artifact . | . . . Weapon 9 | 2 5 2 Energy Gun 1 | . 1 . Energy Cannon 2 | . 1 1 Ballistic Gun 2 | 2 . . Ballistic Cannon 1 | . 1 . Launcher 1 | . 1 . Special Weapon . | . . . Impact Weapon . | . . . Slashing Weapon 1 | . 1 . Piercing Weapon . | . . . Special Melee Weapon 1 | . . 1 Unidentified Prototypes . | . . . Parts Lost 6 | . 3 3 Power 2 | . 1 1 Propulsion 3 | . 1 2 Utility . | . . . Weapon 1 | . 1 . Highest Loss Streak 2 | . 2 2 To Critical Strikes . | . . . Average Backups 4 | 1 4 5 Power . | . . . Propulsion . | . . . Utility 2 | . 2 3 Weapon 1 | . 1 2 Tool/Special . | . . . Unused Backups 6 | . 4 2 Power 1 | . 1 . Propulsion . | . . . Utility 3 | . 1 2 Weapon 1 | . 1 . Tool/Special 1 | . 1 . Average Slot Usage (%) 87 | . 96 75 Engine 13 | . 13 14 Treads 14 | . 22 4 Leg 1 | . 2 . Flight 1 | . 1 . Device 9 | . 7 13 Storage 6 | . 1 14 Hackware 11 | . 19 . Energy Gun 1 | . 2 . Energy Cannon 9 | . 4 16 Ballistic Gun 3 | . 6 . Ballistic Cannon 1 | . 3 . Slashing Weapon 6 | . 9 3 Special Melee Weapon 3 | . . 8 Peak Build Rating 14 | 9 12 14 Average Rating 10 | 5 10 11 On Entrance 6 | . 9 10 Avg Prop Armor Cover (%) 11 | . 11 . Naked Turns . | . . . Heaviest Build 37 | 11 30 37 Greatest Support 40 | 40 40 40 Greatest Overweight (x) 12 | 2 3 12 Average Overweight (x) 1 | . . 6 Largest Inventory Capacity 15 | 5 15 15 Average Capacity 9 | 5 5 15 Most Carried 7 | 2 5 7 Average Carried 5 | 1 4 6 Final Capacity 15 | 5 15 15 Final Carried 7 | 2 5 7 Class Distribution -------------------- 59% | Mutant 32% | Hacker-Mutant 7% | Scavenger-Mutant Dominant Class ---------------- Hacker-Mutant | -10/Materials Mutant | -10/Subcaves Resources | -11 -10 -10 ----------- Run | Yrd Mat Sub Matter Collected 837 | 318 461 58 Remotely . | . . . Salvage Created 863 | 115 629 119 Parts 55 | 5 47 3 Haulers Intercepted 1 | . 1 . Recyclers Shooed 1 | . 1 . Parts Field Recycled . | . . . Retrieved Matter . | . . . Parts Self-Destructed 6 | . . 6 Prevented . | . . . Parts Restored . | . . . Kills | -11 -10 -10 ------- Run | Yrd Mat Sub Combat Hostiles Destroyed 17 | . 14 3 Melee 2 | . 2 . Guns 5 | . 5 . Cannons 8 | . 5 3 AOE 2 | . 2 . Classes Destroyed 10 | 2 7 1 Worker 1 | . 1 . Builder 2 | . 2 . Tunneler 2 | 2 . . Hauler 1 | . 1 . Recycler 2 | 1 1 . Operator 3 | . 3 . Watcher 1 | . 1 . Swarmer 3 | . 3 . Grunt 13 | . 11 2 Subdweller 1 | . . 1 Best Kill Streak 5 | 3 5 2 Combat Bots Only 3 | . 3 2 Max Kills in Single Turn 2 | 1 2 1 Gunslinging . | . . . Exploded 2 | . 2 . Melee 1 | . 1 . Uniques/NPCs Destroyed . | . . . Combat | -11 -10 -10 -------- Run | Yrd Mat Sub Hostile Shots Fired 109 | . 84 25 Missed 32 | . 28 4 Hits 77 | . 56 21 Projectile 77 | . 56 21 Critical Strikes 1 | . 1 . Damage Taken 978 | . 673 305 Core 262 | . 150 112 Absorbed by Shields . | . . . Regen/Repaired (Parts) 43 | . 43 . Core Remaining (%) 100 | 100 . . Volleys Fired 88 | 8 66 14 Largest 2 | 2 2 2 Hottest 140 | 40 60 140 Shots Fired 115 | 16 82 17 Gun 64 | 16 48 . Cannon 50 | . 33 17 Launcher 1 | . 1 . Special . | . . . Kinetic 75 | 16 59 . Thermal 39 | . 22 17 Explosive 1 | . 1 . Electromagnetic . | . . . Robot Hit Streak 15 | 8 15 3 Robot Miss Streak 3 | 1 3 3 Penetration Max . | . . . Secondary Targets . | . . . Shots Hit Robots 75 | 13 54 8 Core Hits 39 | 4 31 4 Critical Kills . | . . . Critical Parts Destroyed . | . . . Critical Strikes 2 | . 2 . Blast 2 | . 2 . Melee Attacks 24 | . 24 . Impact . | . . . Slashing 24 | . 24 . Piercing . | . . . Sneak Attacks 2 | . 2 . Combat Hostiles . | . . . Follow-up Attacks . | . . . Damage Inflicted 1324 | 169 1007 148 Guns 562 | 169 393 . Cannons 485 | . 337 148 Explosions 77 | . 77 . Melee 191 | . 191 . Ramming 9 | . 9 . Kinetic 792 | 169 623 . Thermal 255 | . 107 148 Explosive 77 | . 77 . Electromagnetic . | . . . Impact . | . . . Slashing 191 | . 191 . Piercing . | . . . Highest Corruption 1 | . 1 1 Average Corruption 1 | . 1 1 Corruption Purged . | . . . Corruption Blocked . | . . . Effects 13 | . 2 11 Message Errors 2 | . . 2 Matter Fused 4 | . . 4 Heat Flow Errors 1 | . . 1 Energy Discharges 3 | . 1 2 Data Loss (minor) 1 | . . 1 Data Loss (major) 1 | . 1 . Misfires 1 | . . 1 Overload Shots . | . . . Overflow Damage 45 | . 45 . Projectiles 15 | . 15 . Explosions . | . . . Melee 30 | . 30 . Knockbacks 2 | . 2 . Impact . | . . . Kinetic 2 | . 2 . Secondary . | . . . Self-Inflicted Damage . | . . . Shots . | . . . Rammed 4 | 1 3 . Targets Rammed 5 | 1 4 . Kicked . | . . . Crushed 1 | . 1 . Highest Temperature 100 | . 100 86 Average Temperature 26 | . 25 39 Received Heat Transfer 486 | . 348 138 Siege Activations . | . . . Martial Activations . | . . . Shielding Activations . | . . . Robots Disrupted . | . . . Combat Hostiles . | . . . Robots Corrupted . | . . . Combat Hostiles . | . . . Parts Fried . | . . . Impact Corruptions . | . . . Robots Melted . | . . . Combat Hostiles . | . . . Parts Melted 1 | . . 1 Heat Transferred 592 | . 296 296 Parts Sabotaged . | . . . Parts Stolen . | . . . Parts Stripped . | . . . Power Chain Reactions . | . . . Alert | -11 -10 -10 ------- Run | Yrd Mat Sub Maximum Alert Level . | . . . Low Security (%) 100 | 100 100 . Level 1 . | . . . Level 2 . | . . . Level 3 . | . . . Level 4 . | . . . Level 5 . | . . . High Security . | . . . Max Security . | . . . Peak Influence 151 | 10 151 . Initial . | . . . Average 66 | 1 72 . Influence Increases 575 | 15 510 50 Destroy 0b10 Robot/C 320 | . 280 40 Destroy 0b10 Robot/NC 60 | 15 45 . Destroy Leader 84 | . 74 10 Successful Hack 6 | . 6 . Select Force Hacks 60 | . 60 . Disable Machine 45 | . 45 . Influence Decreases 575 | 15 445 115 Entered New Map 32 | . . 32 Time Decay 513 | 15 415 83 Lost Part 30 | . 30 . Squads Dispatched 5 | . 5 . Investigation 3 | . 3 . Extermination . | . . . Reinforcement 2 | . 2 . Assault . | . . . Garrison . | . . . Intercept . | . . . Searches Triggered . | . . . Construction Impeded . | . . . Haulers Reinforced . | . . . Active Scanning Responses . | . . . Cargo Convoy Interrupts . | . . . Stealth | -11 -10 -10 --------- Run | Yrd Mat Sub Distress Signals . | . . . Communications Jammed . | . . . Distress Signals . | . . . Times Spotted 26 | . 22 4 Peak Tracking Total 4 | . 4 2 Tactical Retreats . | . . . Traps | -11 -10 -10 ------- Run | Yrd Mat Sub Traps Triggered 4 | . 4 . Indirectly . | . . . Trap Hack Attempts . | . . . Triggered . | . . . Disarmed 2 | . 2 . Reprogrammed . | . . . Reused . | . . . Traps Extracted . | . . . Installed . | . . . Triggered . | . . . Machines | -11 -10 -10 ---------- Run | Yrd Mat Sub Machines Disabled 3 | . 3 . Max in Single Turn 1 | . 1 . Machines Repaired . | . . . Machines Dismantled . | . . . Machines Sabotaged . | . . . Overloaded Fab Kills . | . . . Hacking | -11 -10 -10 --------- Run | Yrd Mat Sub Machines Accessed 6 | . 6 . Terminals 3 | . 3 . Fabricators . | . . . Repair Stations 1 | . 1 . Recycling Units 2 | . 2 . Scanalyzers . | . . . Garrison Access . | . . . Total Hacks 21 | . 21 . Successful 14 | . 14 . Failed 7 | . 7 . Catastrophic 1 | . 1 . Database Lockouts . | . . . Manual 9 | . 9 . Terminals 13 | . 13 . Fabricators . | . . . Repair Stations 2 | . 2 . Recycling Units 6 | . 6 . Scanalyzers . | . . . Garrison Access . | . . . Terminal Hacks 8 | . 8 . Prototype ID Bank 1 | . 1 . Branch Access Points 1 | . 1 . Alert Level 2 | . 2 . Locate Traps 2 | . 2 . Disarm Traps 1 | . 1 . Hauler Manifests 1 | . 1 . Fabricator Hacks . | . . . Repair Station Hacks 2 | . 2 . Scan Component 1 | . 1 . Repair 1 | . 1 . Recycling Unit Hacks 2 | . 2 . Report Inventory 2 | . 2 . Scanalyzer . | . . . Garrison Access Hacks . | . . . Unauthorized Hacks 2 | . 2 . Terminals . | . . . Fabricators . | . . . Repair Stations . | . . . Recycling Units 2 | . 2 . Tunnel 2 | . 2 . Scanalyzers . | . . . Garrison Access . | . . . Data Cores Recovered 1 | . 1 . Used . | . . . Hacking Detections 4 | . 4 . Full Trace Events 2 | . 2 . Feedback Events 1 | . 1 . Corruption 1 | . 1 . Feedback Blocked . | . . . Robot Schematics Acquired . | . . . Robots Built . | . . . Authchips . | . . . Time . | . . . Total Robot Build Rating . | . . . Part Schematics Acquired . | . . . Parts Built . | . . . Authchips . | . . . Time . | . . . Total Part Build Rating . | . . . Part Studies Acquired . | . . . Parts Repaired 1 | . 1 . Time 26 | . 26 . Parts Recycled . | . . . Recycled Matter . | . . . Retrieved Matter . | . . . Retrieved Components . | . . . Parts Scanalyzed . | . . . Part Schematics Acquired . | . . . Parts Damaged . | . . . Bothacking | -11 -10 -10 ------------ Run | Yrd Mat Sub Used RIF Installer . | . . . Robots Hacked . | . . . Non-combat . | . . . Combat . | . . . Robot Hacks Applied . | . . . Relay Couplers Released . | . . . Fabnet Peak Effective % . | . . . Robots Rewired . | . . . Allies Hacked . | . . . Hacks Repelled . | . . . Allies | -11 -10 -10 -------- Run | Yrd Mat Sub Total Allies . | . . . Largest Group . | . . . Highest-Rated Group . | . . . Highest-Rated Ally . | . . . Total Orders . | . . . Ally Attacks . | . . . Total Damage . | . . . Kills . | . . . Allies Corrupted . | . . . Allies Melted . | . . . Intel | -11 -10 -10 ------- Run | Yrd Mat Sub Active Infowar (turns) 377 | 37 340 . Terrain 306 | 37 269 . Seismic 368 | 28 340 . Robot Analysis Total . | . . . Derelict Logs Recovered . | . . . Drone Launches . | . . . Drone Recoveries . | . . . Exploration | -11 -10 -10 ------------- Run | Yrd Mat Sub Turns Passed 2226 | 111 1196 919 Spaces Moved 848 | 50 597 201 Core 139 | 12 7 120 Treads 588 | 38 469 81 Legs 69 | . 69 . Wheels . | . . . Hover . | . . . Flight 52 | . 52 . Fastest Speed 37 | 50 37 160 Average Speed 212 | 148 145 424 Slowest Speed 650 | 160 200 650 Overloaded Moves . | . . . Propulsion Burnouts . | . . . Robots Hopped . | . . . Potential Cave-ins . | . . . Cave-ins Triggered . | . . . Exploration Rate (%) 33 | 4 79 16 Regions Visited 2 Branch Regions 1 Pre-discovered Areas 2 | . 2 . Known Exits Taken . | . . . Unknown Exits Taken 2 | 1 1 . Scrap Searched . | . . . Spaces Dug . | . . . Terrain Destroyed 1 | . . 1 Melee . | . . . Projectile 1 | . . 1 AOE . | . . . Terrain Rammed . | . . . Walls Destroyed . | . . . Machines Disabled . | . . . Actions | -11 -10 -10 --------- Run | Yrd Mat Sub Total 1106 | 67 787 252 Wait 69 | . 40 29 Move 847 | 50 596 201 Hop . | . . . Pick Up 14 | 2 11 1 Fast Attach 29 | 7 20 2 Attach 4 | . 3 1 Detach 4 | . 2 2 Swap 5 | . 4 1 Drop 18 | . 17 1 Fire 88 | 8 66 14 Melee 24 | . 24 . Ram . | . . . Kick . | . . . Crush 4 | . 4 . Escape Stasis . | . . . Rewire . | . . . Trap . | . . . Miscellaneous . | . . . Route ------- -11/Scrapyard -10/Materials (discovered 4 exits: [*Mat x2] / *Min / [*Sub]) -10/Subcaves History --------- Turn | Location | Event 16 | -11/Scrapyard | Discovered new exit (range 15) 112 | -11/Scrapyard | Entered Materials 300 | -10/Materials | Build established: Mutant 558 | -10/Materials | Discovered new exit (range 7) 593 | -10/Materials | Discovered new exit (range 14) 644 | -10/Materials | Repaired Lgt. Cannon 733 | -10/Materials | Identified exit to Mines 785 | -10/Materials | Build established: Hacker-Mutant 803 | -10/Materials | Core integrity fell below 50% 829 | -10/Materials | Discovered new exit (range 8) 1303 | -10/Materials | Discovered new exit (range 3) 1308 | -10/Materials | Entered Subcaves 1309 | -10/Subcaves | Approached by a straggling Scientist 1462 | -10/Subcaves | Core integrity fell below 20% 1549 | -10/Subcaves | Build established: Mutant 2227 | -10/Subcaves | Destroyed by 7F-TBM(R) with Subdweller Machine Gun Last Messages --------------- Analyzer. 02086_ System corrupted: Component data lost. 02111_ Acquired 48 matter. 02116_ Subatomizers dissect the Machine Analyzer. 02142_ Subatomizers dissect the Mak. Trap Scanner, destroying it. 02152_ System corrupted: FCS attempts to trigger Sub. Beam Cannon. 02152_ System corrupted: Sub. Beam Cannon misfires. 02156_ Subatomizers dissect the Mak. Power Source. 02171_ Subatomizers dissect the Machine Analyzer. 02191_ V5FPOT:OZD5E3HUZ #T550/KK